Cogmind - Beta 16 --- EXPLORER MODE // 2025.12.25 @ 14:37:24 Player: K.K.Y. Result: Core destroyed Performance ------------- Evolutions (4) 2000 Regions Visited (9) 1800 Robots Destroyed (149) 745 Value Destroyed (5900) 5900 Prototype IDs (31) 620 Alien Tech Used (0) 0 Bonus (2132) 2132 TOTAL SCORE: 13197 Bonus ------- Follower Combat Kills 481 Delivered SUBCON Basin 2000 Friendly Fire -349 Cogmind --------- Core Integrity 0/850 Matter 200/300 Energy 264/325 System Corruption 4% Temperature Critical (599) Movement Treading (160) Location -6/Lower Caves Parts ------- > --- POWER (1) -------- Reinforced Antimatter Reactor > --- PROPULSION (6) --- Medium Treads Improved Medium Treads Improved Medium Treads Improved Medium Treads > --- UTILITY (7) ------ High-capacity Storage Unit Machine Analyzer Layered Light Armor Plating Hacking Suite Improved Hacking Suite Improved System Shield Tech Extrapolator > --- WEAPON (2) ------- Advanced Beam Rifle Hardcell Cannon > --- INVENTORY (20) --- Reinforced Antimatter Reactor Humpback Deep Structural Scanner Machine Analyzer Advanced Sensor Array Advanced Signal Interpreter Advanced Terrain Scanner Advanced Terrain Scan Processor Advanced ECM Suite Cloaking Device Graphene Brace Authchip [Storage] Improved Lightning Gun Proton Cannon Advanced Assault Cannon Mining Laser Plasma Cutter Shock Maul Peak State ------------ > --- POWER ------------ Light Angular Momentum Engine > --- PROPULSION ------- Improved Medium Treads Improved Medium Treads Heavy Treads Heavy Treads > --- UTILITY ---------- Improved Cooling System High-capacity Storage Unit Quantum Capacitor Hacking Suite Hacking Suite Improved System Shield > --- WEAPON ----------- Heavy Plasma Cannon Hardcell Cannon > --- INVENTORY -------- Medium Treads Advanced Heat Sink Humpback Advanced Signal Interpreter Advanced Terrain Scanner Advanced Terrain Scan Processor Graphene Brace Improved Shield Generator Authchip [Device] Authchip [Storage] Tech Extrapolator Plasma Cannon Heavy Battle Rifle Heavy Machine Gun Heavy Machine Gun Hardcell Cannon Mining Laser Plasma Cutter Ripper [Rating: 89] Favorites ----------- Power Improved Ion Engine Engine Improved Ion Engine Power Core Hybrid Fission Core Reactor Reinforced Antimatter Reactor Propulsion Improved Medium Treads Treads Improved Medium Treads Leg Enhanced Flexi-carbon Leg Utility Hacking Suite Device Structural Scanner Storage High-capacity Storage Unit Processor Machine Analyzer Hackware Hacking Suite Protection Light Armor Plating Weapon Beam Cannon Energy Gun Advanced Beam Rifle Energy Cannon Beam Cannon Ballistic Gun Heavy Battle Rifle Ballistic Cannon Hardcell Cannon Impact Weapon Shock Maul Build | -11 -10 -10 -10 -9 -9 -6 -6 -6 -6 ------- Run | Yrd Mat Min Sub Rec Scr Fac Was Fac Low Slots Evolved 9 | . 1 . . . . 8 . . . Power . | . . . . . . . . . . Propulsion 4 | . . . . . . 4 . . . Utility 5 | . 1 . . . . 4 . . . Weapon . | . . . . . . . . . . Parts Attached 106 | 7 7 5 7 4 5 26 11 33 1 Power 12 | 1 . 1 . 2 . 3 1 4 . Engine 8 | 1 . 1 . 2 . 3 . 1 . Core 2 | . . . . . . . . 2 . Reactor 2 | . . . . . . . 1 1 . Propulsion 30 | 2 2 3 1 1 . 8 7 6 . Treads 29 | 2 2 3 1 1 . 8 6 6 . Leg 1 | . . . . . . . 1 . . Wheel . | . . . . . . . . . . Hover . | . . . . . . . . . . Flight . | . . . . . . . . . . Utility 40 | 2 1 1 4 1 3 11 3 13 1 Device 18 | . 1 . 1 . 3 4 2 7 . Storage 5 | 1 . 1 2 . . 1 . . . Processor 2 | . . . . . . . . 2 . Hackware 7 | . . . . . . 3 . 4 . Protection 8 | 1 . . 1 1 . 3 1 . 1 Artifact . | . . . . . . . . . . Weapon 24 | 2 4 . 2 . 2 4 . 10 . Energy Gun 3 | . . . . . . . . 3 . Energy Cannon 9 | . 3 . 1 . 1 2 . 2 . Ballistic Gun 7 | 2 1 . 1 . 1 1 . 1 . Ballistic Cannon 4 | . . . . . . 1 . 3 . Launcher . | . . . . . . . . . . Special Weapon . | . . . . . . . . . . Impact Weapon 1 | . . . . . . . . 1 . Slashing Weapon . | . . . . . . . . . . Piercing Weapon . | . . . . . . . . . . Special Melee Weapon . | . . . . . . . . . . Unidentified Prototypes 5 | . . . 1 . . . 1 3 . Parts Lost 14 | . . . 2 . . 2 . 10 . Power 2 | . . . . . . 1 . 1 . Propulsion 5 | . . . . . . 1 . 4 . Utility 4 | . . . 1 . . . . 3 . Weapon 3 | . . . 1 . . . . 2 . Highest Loss Streak 2 | . . . 1 . . 1 . 2 . To Critical Strikes . | . . . . . . . . . . Average Backups 15 | 1 3 8 13 13 17 17 18 18 18 Power . | . . . . . . . . . 1 Propulsion . | . . 1 . . . . . . . Utility 8 | . . 3 5 6 10 9 9 11 11 Weapon 5 | . 2 4 6 7 6 7 6 5 5 Tool/Special . | . . . . . . . . . . Unused Backups 36 | . 1 . . . 4 6 3 7 15 Power 1 | . . . . . . . . . 1 Propulsion 2 | . . . . . 1 . 1 . . Utility 18 | . . . . . 2 2 2 3 9 Weapon 14 | . 1 . . . 1 4 . 4 4 Tool/Special 1 | . . . . . . . . . 1 Average Slot Usage (%) 91 | . 89 100 93 95 100 93 84 86 87 Engine 7 | . 11 12 12 12 12 5 5 . . Reactor 1 | . . . . . . . . 2 6 Treads 25 | . 24 25 25 25 25 33 25 25 25 Device 13 | . 8 12 17 11 24 12 12 9 5 Storage 9 | . 12 12 12 12 12 6 6 6 6 Processor 1 | . . . . . . . . 5 12 Hackware 9 | . . . . . . 16 18 19 18 Protection 3 | . 11 12 . 8 . 5 2 . . Energy Cannon 8 | . 6 25 12 12 12 6 6 4 . Ballistic Gun 5 | . 12 . 11 12 12 1 . . . Ballistic Cannon 2 | . . . . . . 4 5 5 6 Peak Build Rating 89 | 7 8 10 35 35 24 77 89 88 73 Average Rating 46 | 4 7 9 24 20 22 67 80 78 72 On Entrance 32 | . 7 8 10 35 16 24 68 86 73 Avg Prop Armor Cover (%) 9 | . . . . . . . . 9 . Naked Turns . | . . . . . . . . . . Heaviest Build 234 | 21 25 37 215 234 60 79 89 89 80 Greatest Support 210 | 40 40 40 40 40 49 185 210 210 118 Greatest Overweight (x) 8 | . 8 . 5 5 1 1 . 1 . Average Overweight (x) . | . . . 1 . 1 . . . . Largest Inventory Capacity 35 | 10 10 15 35 35 20 20 20 20 20 Average Capacity 19 | 8 10 12 24 21 20 20 20 20 20 Most Carried 31 | 5 10 11 31 31 20 20 20 20 20 Average Carried 17 | 1 3 8 21 18 19 19 19 19 19 Final Capacity 35 | 10 10 15 35 20 20 20 20 20 20 Final Carried 31 | 1 6 11 31 19 20 20 20 20 19 Class Distribution -------------------- 76% | Hacker-Mutant 13% | Hauler-Mutant 6% | Wizard-Mutant 4% | Scavenger-Mutant Dominant Class ---------------- Hacker-Mutant | -10/Materials Hacker-Mutant | -10/Mines Hacker-Mutant | -10/Subcaves Scavenger-Mutant | -9/Recycling Hacker-Mutant | -9/Scraptown Hacker-Mutant | -6/Factory Hacker-Mutant | -6/Waste Hacker-Mutant | -6/Factory Hacker-Mutant | -6/Lower Caves Resources | -11 -10 -10 -10 -9 -9 -6 -6 -6 -6 ----------- Run | Yrd Mat Min Sub Rec Scr Fac Was Fac Low Matter Collected 4079 | 255 387 50 404 165 84 926 235 1358 215 Remotely . | . . . . . . . . . . Salvage Created 6781 | 97 452 317 277 49 . 1744 318 3196 331 Parts 283 | 5 33 20 11 4 . 75 1 126 8 Haulers Intercepted 8 | . 1 . . . . 2 . 5 . Recyclers Shooed 4 | . 1 . . 1 . 2 . . . Parts Field Recycled . | . . . . . . . . . . Retrieved Matter . | . . . . . . . . . . Parts Self-Destructed . | . . . . . . . . . . Prevented . | . . . . . . . . . . Parts Restored . | . . . . . . . . . . Kills | -11 -10 -10 -10 -9 -9 -6 -6 -6 -6 ------- Run | Yrd Mat Min Sub Rec Scr Fac Was Fac Low Combat Hostiles Destroyed 110 | . 7 7 3 1 . 30 1 54 7 Guns 18 | . 7 . 3 1 . 1 . 3 3 Cannons 82 | . . 6 . . . 26 1 45 4 Classes Destroyed 21 | 2 6 1 4 . . 6 1 1 . Worker 3 | . 1 . . . . 1 . 1 . Builder 4 | . 1 . . . . 2 . 1 . Tunneler 2 | 2 . . . . . . . . . Hauler 8 | . 1 . . . . 2 . 5 . Recycler 5 | 1 1 2 . . . . . 1 . Mechanic 3 | . . . . . . . . 3 . Operator 2 | . . . . . . 1 . 1 . Watcher 10 | . 2 . . . . 3 . 5 . Swarmer 14 | . 2 4 1 . . . . 6 1 Grunt 48 | . 5 2 . . . 18 . 20 3 Brawler 7 | . . . . . . 1 . 4 2 Duelist 4 | . . . . . . 2 . 2 . Sentry 12 | . . 1 . 1 . 3 . 6 1 Hunter 5 | . . . . . . 1 . 4 . Programmer 15 | . . . . . . 4 . 11 . Behemoth 2 | . . . . . . 1 . 1 . Compactor 1 | . . . . . . . 1 . . Artisan 1 | . . . 1 . . . . . . Cobbler 1 | . . . 1 . . . . . . Subdweller 2 | . . . 2 . . . . . . Zionite 2 | . . . 2 . . . . . . Best Kill Streak 7 | 2 3 4 1 1 . 5 1 7 7 Combat Bots Only 7 | . 2 2 1 1 . 5 1 6 7 Max Kills in Single Turn 2 | 1 1 2 1 1 . 2 1 1 1 Gunslinging . | . . . . . . . . . . Exploded . | . . . . . . . . . . Melee . | . . . . . . . . . . Uniques/NPCs Destroyed . | . . . . . . . . . . Combat | -11 -10 -10 -10 -9 -9 -6 -6 -6 -6 -------- Run | Yrd Mat Min Sub Rec Scr Fac Was Fac Low Hostile Shots Fired 903 | . 61 27 47 . . 262 3 456 47 Missed 268 | . 19 12 9 . . 83 . 140 5 Hits 635 | . 42 15 38 . . 179 3 316 42 Melee 9 | . . . . . . 1 3 5 . Projectile 626 | . 42 15 38 . . 178 . 311 42 AOE 2 | . . . . . . . . 2 . Critical Strikes 24 | . . . 2 . . 9 1 10 2 Damage Taken 6714 | . 260 88 552 . . 1684 93 3068 969 Core 974 | . 31 . 71 . . 114 . 315 443 Absorbed by Shields . | . . . . . . . . . . Ignored by Resistances 3837 | . 170 60 324 . . 1025 53 1861 344 Regen/Repaired (Parts) 488 | . . . . . . . . 488 . Core Remaining (%) 79 | 100 . . . . 59 . . . . Volleys Fired 470 | 8 57 15 108 1 . 92 3 169 17 Largest 2 | 2 2 2 2 1 . 2 2 2 2 Hottest 175 | 40 40 120 120 33 . 145 145 175 116 Shots Fired 792 | 16 73 30 110 2 . 184 6 337 34 Gun 270 | 16 72 . 107 2 . 14 . 42 17 Cannon 522 | . 1 30 3 . . 170 6 295 17 Launcher . | . . . . . . . . . . Special . | . . . . . . . . . . Kinetic 449 | 16 72 . 107 2 . 92 3 140 17 Thermal 343 | . 1 30 3 . . 92 3 197 17 Explosive . | . . . . . . . . . . Electromagnetic . | . . . . . . . . . . Robot Hit Streak 48 | 14 16 17 30 23 . 48 25 29 18 Robot Miss Streak 3 | . 3 2 2 . . 2 . 2 1 Penetration Max . | . . . . . . . . . . Secondary Targets . | . . . . . . . . . . Shots Hit Robots 625 | 14 58 20 69 2 . 150 6 278 28 Core Hits 226 | 5 22 11 14 1 . 59 1 103 10 Critical Kills 7 | . . 1 . . . 3 . 3 . Critical Parts Destroyed 1 | . . . 1 . . . . . . Critical Strikes 29 | . . 1 2 . . 7 . 16 3 Burn 6 | . . . . . . . . 5 1 Meltdown 7 | . . 1 . . . 3 . 3 . Destroy 2 | . . . 2 . . . . . . Blast 14 | . . . . . . 4 . 8 2 Melee Attacks . | . . . . . . . . . . Impact . | . . . . . . . . . . Slashing . | . . . . . . . . . . Piercing . | . . . . . . . . . . Sneak Attacks . | . . . . . . . . . . Combat Hostiles . | . . . . . . . . . . Follow-up Attacks . | . . . . . . . . . . Damage Inflicted 18447 | 139 755 331 1426 49 . 5386 224 9359 778 Guns 3667 | 139 755 . 1426 49 . 218 . 760 320 Cannons 14765 | . . 331 . . . 5168 224 8584 458 Explosions . | . . . . . . . . . . Melee . | . . . . . . . . . . Ramming 15 | . . . . . . . . 15 . Kinetic 9860 | 139 755 . 1426 49 . 2674 128 4231 458 Thermal 8572 | . . 331 . . . 2712 96 5113 320 Explosive . | . . . . . . . . . . Electromagnetic . | . . . . . . . . . . Impact . | . . . . . . . . . . Slashing . | . . . . . . . . . . Piercing . | . . . . . . . . . . Highest Corruption 4 | . 1 1 1 1 . 1 . 4 4 Average Corruption 1 | . 1 1 1 1 . 1 . 1 4 Corruption Purged 1 | . . . . . . 1 . . . Corruption Blocked . | . . . . . . . . . . Effects 130 | . 8 7 34 12 . 3 . 53 13 Message Errors 24 | . . 1 6 . . 2 . 9 6 Matter Fused 35 | . 2 . 7 7 . 1 . 16 2 Heat Flow Errors 13 | . 1 1 4 1 . . . 4 2 Energy Discharges 23 | . 1 1 9 1 . . . 9 2 Parts Fused 1 | . . . 1 . . . . . . Data Loss (minor) 19 | . 1 4 4 1 . . . 8 1 Data Loss (major) 8 | . 2 . 2 1 . . . 3 . Misfires 6 | . 1 . 1 1 . . . 3 . Weapon Failures 1 | . . . . . . . . 1 . Overload Shots . | . . . . . . . . . . Overflow Damage 483 | . . . . . . 112 . 371 . Projectiles 483 | . . . . . . 112 . 371 . Explosions . | . . . . . . . . . . Melee . | . . . . . . . . . . Knockbacks 46 | . . . . . . 25 . 20 1 Impact . | . . . . . . . . . . Kinetic 40 | . . . . . . 20 . 19 1 Secondary 6 | . . . . . . 5 . 1 . Self-Inflicted Damage . | . . . . . . . . . . Shots . | . . . . . . . . . . Rammed 2 | . . . . . . . . 2 . Targets Rammed 3 | . . . . . . . . 3 . Kicked . | . . . . . . . . . . Crushed 1 | . . . . . . . . 1 . Highest Temperature 624 | 12 212 298 222 267 . 540 . 434 624 Average Temperature 128 | 5 49 108 91 133 . 120 . 126 277 Received Heat Transfer 2781 | . 153 21 198 . . 1041 . 1143 225 Effects 34 | . . . . . . 19 . 4 11 Shutdowns 9 | . . . . . . 5 . 1 3 Energy Bleed 1 | . . . . . . . . . 1 Interference 6 | . . . . . . 4 . 1 1 Matter Decay 5 | . . . . . . 3 . 1 1 Short Circuit 1 | . . . . . . 1 . . . Damage (minor) 4 | . . . . . . 1 . 1 2 Damage (major) 5 | . . . . . . 5 . . . Damage (core) 3 | . . . . . . . . . 3 Siege Activations . | . . . . . . . . . . Martial Activations . | . . . . . . . . . . Shielding Activations . | . . . . . . . . . . Robots Disrupted . | . . . . . . . . . . Combat Hostiles . | . . . . . . . . . . Robots Corrupted 1 | . . . . . . 1 . . . Combat Hostiles . | . . . . . . . . . . Parts Fried 3 | . . . . . . 3 . . . Impact Corruptions 1 | . . . . . . 1 . . . Robots Melted 10 | . . 1 . . . 3 . 6 . Combat Hostiles 10 | . . 1 . . . 3 . 6 . Parts Melted 22 | . . 1 . . . 5 . 16 . Heat Transferred 13571 | . . 703 . . . 4250 150 7802 666 Parts Sabotaged . | . . . . . . . . . . Parts Stolen . | . . . . . . . . . . Parts Stripped . | . . . . . . . . . . Power Chain Reactions . | . . . . . . . . . . Alert | -11 -10 -10 -10 -9 -9 -6 -6 -6 -6 ------- Run | Yrd Mat Min Sub Rec Scr Fac Was Fac Low Maximum Alert Level . | . . . . . . . . . . Low Security (%) 100 | 100 100 100 . 100 . 100 100 100 . Level 1 . | . . . . . . . . . . Level 2 . | . . . . . . . . . . Level 3 . | . . . . . . . . . . Level 4 . | . . . . . . . . . . Level 5 . | . . . . . . . . . . High Security . | . . . . . . . . . . Max Security . | . . . . . . . . . . Peak Influence 196 | 5 50 54 . 24 . 196 . 120 . Initial 2 | . . . . 2 . . . . . Average 14 | . 2 6 . . . 56 . 10 . Influence Increases 3590 | 15 222 188 168 100 . 1144 . 1613 140 Destroy 0b10 Robot/C 2460 | . 140 140 120 60 . 780 . 1080 140 Destroy 0b10 Robot/NC 195 | 15 30 10 . 5 . 50 . 85 . Destroy Leader 604 | . 36 30 10 . . 198 . 330 . Allied During Kill 67 | . . . 23 11 . 33 . . . Successful Hack 97 | . . . . 24 . 16 . 57 . Disable Machine 28 | . . 8 . . . 12 . 8 . Destroy Structure 94 | . 1 . . . . 55 . 38 . Lose Combat Pursuer 45 | . 15 . 15 . . . . 15 . Influence Decreases 3480 | 15 222 188 161 107 . 1144 . 1613 30 Entered New Map 5 | . . . . 5 . . . . . Time Decay 3227 | 15 222 188 141 96 . 974 . 1561 30 Lost Part 62 | . . . . . . 10 . 52 . Lost Ally 186 | . . . 20 6 . 160 . . . Squads Dispatched 28 | . . . . . . 11 . 17 . Investigation 6 | . . . . . . 2 . 4 . Extermination 13 | . . . . . . 3 . 10 . Reinforcement 6 | . . . . . . 3 . 3 . Assault . | . . . . . . . . . . Garrison 3 | . . . . . . 3 . . . Intercept . | . . . . . . . . . . Searches Triggered . | . . . . . . . . . . Construction Impeded 1 | . . . . . . 1 . . . Haulers Reinforced 2 | . . . . . . 1 . 1 . Active Scanning Responses . | . . . . . . . . . . Cargo Convoy Interrupts . | . . . . . . . . . . Stealth | -11 -10 -10 -10 -9 -9 -6 -6 -6 -6 --------- Run | Yrd Mat Min Sub Rec Scr Fac Was Fac Low Distress Signals 2 | . . . . . . 1 . 1 . Communications Jammed . | . . . . . . . . . . Distress Signals . | . . . . . . . . . . Times Spotted 176 | . 16 8 17 1 . 47 1 79 7 Peak Tracking Total 7 | . 3 2 3 1 . 4 1 5 7 Tactical Retreats 3 | . 1 . 1 . . . . 1 . Traps | -11 -10 -10 -10 -9 -9 -6 -6 -6 -6 ------- Run | Yrd Mat Min Sub Rec Scr Fac Was Fac Low Traps Triggered 11 | . 4 . . . . 1 . 6 . Indirectly . | . . . . . . . . . . Trap Hack Attempts . | . . . . . . . . . . Triggered . | . . . . . . . . . . Disarmed . | . . . . . . . . . . Reprogrammed . | . . . . . . . . . . Reused . | . . . . . . . . . . Traps Extracted . | . . . . . . . . . . Installed . | . . . . . . . . . . Triggered . | . . . . . . . . . . Machines | -11 -10 -10 -10 -9 -9 -6 -6 -6 -6 ---------- Run | Yrd Mat Min Sub Rec Scr Fac Was Fac Low Machines Disabled 12 | . . 2 5 . . 3 . 2 . Max in Single Turn 1 | . . 1 1 . . 1 . 1 . Garrison Access 3 | . . . . . . 1 . 2 . Machines Repaired . | . . . . . . . . . . Machines Dismantled . | . . . . . . . . . . Machines Sabotaged . | . . . . . . . . . . Overloaded Fab Kills . | . . . . . . . . . . Hacking | -11 -10 -10 -10 -9 -9 -6 -6 -6 -6 --------- Run | Yrd Mat Min Sub Rec Scr Fac Was Fac Low Machines Accessed 37 | . . . 4 11 . 4 . 18 . Terminals 16 | . . . . 5 . 2 . 9 . Fabricators 4 | . . . . . . 1 . 3 . Repair Stations 1 | . . . . . . . . 1 . Recycling Units 6 | . . . . 6 . . . . . Scanalyzers 3 | . . . . . . . . 3 . Garrison Access 3 | . . . . . . 1 . 2 . Total Hacks 160 | . . . 7 43 . 10 . 100 . Successful 135 | . . . 7 32 . 7 . 89 . Failed 25 | . . . . 11 . 3 . 11 . Catastrophic . | . . . . . . . . . . Database Lockouts . | . . . . . . . . . . Manual 44 | . . . . 27 . 2 . 15 . Terminals 64 | . . . . 29 . 5 . 30 . Fabricators 13 | . . . . . . 3 . 10 . Repair Stations 6 | . . . . . . . . 6 . Recycling Units 14 | . . . . 14 . . . . . Scanalyzers 51 | . . . . . . . . 51 . Garrison Access 5 | . . . . . . 2 . 3 . Terminal Hacks 38 | . . . 7 17 . 2 . 12 . Record 4 | . . . 4 . . . . . . Part Schematic 17 | . . . . 4 . 2 . 11 . Robot Schematic 1 | . . . . . . . . 1 . Robot Analysis 1 | . . . . 1 . . . . . Prototype ID Bank 12 | . . . . 12 . . . . . Open Door 1 | . . . 1 . . . . . . Proto ID Catalog 1 | . . . 1 . . . . . . Release Object 1 | . . . 1 . . . . . . Fabricator Hacks 9 | . . . . . . 2 . 7 . Load Schematic 5 | . . . . . . 1 . 4 . Build 4 | . . . . . . 1 . 3 . Repair Station Hacks 6 | . . . . . . . . 6 . Scan Component 3 | . . . . . . . . 3 . Repair 3 | . . . . . . . . 3 . Recycling Unit Hacks 6 | . . . . 6 . . . . . Retrieve Components 6 | . . . . 6 . . . . . Scanalyzer 51 | . . . . . . . . 51 . Insert Component 18 | . . . . . . . . 18 . Analyze 27 | . . . . . . . . 27 . Retrieve Study 6 | . . . . . . . . 6 . Garrison Access Hacks 3 | . . . . . . 1 . 2 . Seal Access 3 | . . . . . . 1 . 2 . Unauthorized Hacks 22 | . . . . 9 . 2 . 11 . Terminals 14 | . . . . 4 . 1 . 9 . Assimilate 3 | . . . . . . . . 3 . Botnet 11 | . . . . 4 . 1 . 6 . Fabricators 3 | . . . . . . 1 . 2 . Fabnet 3 | . . . . . . 1 . 2 . Repair Stations . | . . . . . . . . . . Recycling Units 5 | . . . . 5 . . . . . Reject 5 | . . . . 5 . . . . . Scanalyzers . | . . . . . . . . . . Garrison Access . | . . . . . . . . . . Data Cores Recovered 3 | . . . . . . 2 . 1 . Used 2 | . . . . . . 1 . 1 . Hacking Detections 24 | . . . . 7 . 3 . 14 . Full Trace Events 8 | . . . . 2 . 2 . 4 . Feedback Events . | . . . . . . . . . . Feedback Blocked . | . . . . . . . . . . Robot Schematics Acquired 1 | . . . . . . . . 1 . Robots Built . | . . . . . . . . . . Authchips . | . . . . . . . . . . Time . | . . . . . . . . . . Total Robot Build Rating . | . . . . . . . . . . Part Schematics Acquired 41 | . . . . 4 . 2 . 35 . Parts Built 7 | . . . . . . 2 . 5 . Authchips 1 | . . . . . . . . 1 . Time 170 | . . . . . . 58 . 112 . Total Part Build Rating 42 | . . . . . . 14 . 28 . Part Studies Acquired 6 | . . . . . . . . 6 . Parts Repaired 3 | . . . . . . . . 3 . Time 156 | . . . . . . . . 156 . Parts Recycled . | . . . . . . . . . . Recycled Matter . | . . . . . . . . . . Retrieved Matter . | . . . . . . . . . . Retrieved Components 16 | . . . . 16 . . . . . Parts Scanalyzed 18 | . . . . . . . . 18 . Part Schematics Acquired 18 | . . . . . . . . 18 . Parts Damaged 1 | . . . . . . . . 1 . Bothacking | -11 -10 -10 -10 -9 -9 -6 -6 -6 -6 ------------ Run | Yrd Mat Min Sub Rec Scr Fac Was Fac Low Used RIF Installer . | . . . . . . . . . . Robots Hacked . | . . . . . . . . . . Non-combat . | . . . . . . . . . . Combat . | . . . . . . . . . . Robot Hacks Applied . | . . . . . . . . . . Relay Couplers Released . | . . . . . . . . . . Fabnet Peak Effective % . | . . . . . . . . . . Robots Rewired . | . . . . . . . . . . Allies Hacked . | . . . . . . . . . . Hacks Repelled . | . . . . . . . . . . Allies | -11 -10 -10 -10 -9 -9 -6 -6 -6 -6 -------- Run | Yrd Mat Min Sub Rec Scr Fac Was Fac Low Total Allies 13 | . . . 12 . . . . 1 . Largest Group 12 | . . . 12 11 9 9 . 1 . Highest-Rated Group 228 | . . . 228 209 171 171 . 26 . Highest-Rated Ally 26 | . . . 19 19 19 19 . 26 . Total Orders . | . . . . . . . . . . Ally Attacks 145 | . . . 36 14 . 95 . . . Total Damage 2569 | . . . 691 219 . 1659 . . . Kills 20 | . . . 6 3 . 11 . . . Allies Corrupted . | . . . . . . . . . . Allies Melted . | . . . . . . . . . . Intel | -11 -10 -10 -10 -9 -9 -6 -6 -6 -6 ------- Run | Yrd Mat Min Sub Rec Scr Fac Was Fac Low Active Infowar (turns) 10641 | . 1066 970 2047 965 1502 434 9 3170 478 Sensors 2051 | . . . . . . . . 1593 458 Structural 6983 | . 1066 970 2047 965 1502 433 . . . Machine Analysis 3648 | . . . . . . . . 3170 478 ECM 10 | . . . . . . 1 9 . . Robot Analysis Total 1 | . . . . 1 . . . . . Derelict Logs Recovered 5 | . . 1 1 . 3 . . . . Drone Launches . | . . . . . . . . . . Drone Recoveries . | . . . . . . . . . . Exploration | -11 -10 -10 -10 -9 -9 -6 -6 -6 -6 ------------- Run | Yrd Mat Min Sub Rec Scr Fac Was Fac Low Turns Passed 18535 | 135 1586 970 4011 1414 1502 1973 701 5764 479 Spaces Moved 8418 | 72 875 540 1491 649 597 871 397 2670 256 Core 34 | 25 9 . . . . . . . . Treads 8384 | 47 866 540 1491 649 597 871 397 2670 256 Legs . | . . . . . . . . . . Wheels . | . . . . . . . . . . Hover . | . . . . . . . . . . Flight . | . . . . . . . . . . Fastest Speed 50 | 50 160 160 160 160 240 155 160 160 160 Average Speed 185 | 121 161 160 252 209 240 162 160 160 160 Slowest Speed 560 | 160 450 160 560 560 240 240 160 240 160 Overloaded Moves . | . . . . . . . . . . Propulsion Burnouts . | . . . . . . . . . . Robots Hopped . | . . . . . . . . . . Potential Cave-ins . | . . . . . . . . . . Cave-ins Triggered . | . . . . . . . . . . Exploration Rate (%) 65 | 4 92 99 93 99 53 22 96 66 26 Regions Visited 9 Branch Regions 5 Pre-discovered Areas 3 | . . . 2 . 1 . . . . Known Exits Taken 7 | 1 1 1 1 1 1 . . 1 . Unknown Exits Taken . | . . . . . . . . . . Scrap Searched 7 | . . . 3 . 3 . . . 1 Spaces Dug . | . . . . . . . . . . Terrain Destroyed 58 | . . . 1 . . 17 . 35 5 Melee . | . . . . . . . . . . Projectile 58 | . . . 1 . . 17 . 35 5 AOE . | . . . . . . . . . . Terrain Rammed . | . . . . . . . . . . Walls Destroyed . | . . . . . . . . . . Machines Disabled . | . . . . . . . . . . Actions | -11 -10 -10 -10 -9 -9 -6 -6 -6 -6 --------- Run | Yrd Mat Min Sub Rec Scr Fac Was Fac Low Total 10556 | 104 978 617 1638 706 672 1256 461 3831 293 Wait 1314 | 12 10 47 11 35 51 223 15 892 18 Move 8410 | 71 874 539 1490 648 596 871 396 2669 256 Hop . | . . . . . . . . . . Pick Up 91 | 6 17 7 11 8 8 9 4 21 . Fast Attach 58 | 2 . . . . 2 14 14 26 . Attach 35 | 5 9 . 6 3 . 2 . 9 1 Detach 13 | . 3 . 3 1 2 2 . 2 . Swap 44 | . 2 5 4 5 3 15 3 7 . Drop 112 | . 6 4 5 5 10 28 20 33 1 Fire 470 | 8 57 15 108 1 . 92 3 169 17 Melee . | . . . . . . . . . . Ram . | . . . . . . . . . . Kick . | . . . . . . . . . . Crush 3 | . . . . . . . . 3 . Escape Stasis . | . . . . . . . . . . Rewire 6 | . . . . . . . 6 . . Trap . | . . . . . . . . . . Miscellaneous . | . . . . . . . . . . Route ------- -11/Scrapyard -10/Materials (discovered 5 exits: *Mat x3 / *Min / *Sub) -10/Mines (discovered 4 exits: *Mat x2 / *Exi / *Sub) -10/Subcaves (discovered 3 exits: *Mat x2 / *Rec) -9/Recycling (discovered 2 exits: *Fac / *Scr) -9/Scraptown -6/Factory -6/Waste -6/Factory (discovered 4 exits: *Fac x3 / *Low) -6/Lower Caves History --------- Turn | Location | Event 6 | -11/Scrapyard | Identified exit to Materials 6 | -11/Scrapyard | Discovered exit to Materials (range 16) 136 | -11/Scrapyard | Entered Materials 136 | -10/Materials | Evolved 1 slot: Utility x1 318 | -10/Materials | Build established: Hacker-Mutant 380 | -10/Materials | Identified exit to Mines 380 | -10/Materials | Discovered exit to Mines (range 12) 676 | -10/Materials | Identified exit to Materials 676 | -10/Materials | Discovered exit to Materials (range 15) 1193 | -10/Materials | Discovered exit to Materials (range 6) 1369 | -10/Materials | Discovered exit to Materials (range 14) 1711 | -10/Materials | Identified exit to Subcaves 1711 | -10/Materials | Discovered exit to Subcaves (range 11) 1722 | -10/Materials | Entered Mines 1746 | -10/Mines | Met a Derelict bent on vengeance 2011 | -10/Mines | Joined a pair of Derelicts in attacking an 0b10 outpost 2116 | -10/Mines | Discovered exit to Materials (range 13) 2271 | -10/Mines | Discovered exit to Materials (range 5) 2563 | -10/Mines | Learned Materials stockpile data 2599 | -10/Mines | A weapon hastily lodged in a ceiling crevice suddenly fell to the ground 2662 | -10/Mines | Deemed a non-threat by the Exiles lab entrance 2662 | -10/Mines | Identified exit to Exiles 2662 | -10/Mines | Discovered exit to Exiles (range 5) 2684 | -10/Mines | Discovered exit to Subcaves (range 6) 2692 | -10/Mines | Entered Subcaves 2759 | -10/Subcaves | Shifting Twisted Machinery released Sub. Monowheel 2955 | -10/Subcaves | Visited triangular shrine 2965 | -10/Subcaves | Found Prototype Device 2966 | -10/Subcaves | Identified V3-11A's Pendant 2971 | -10/Subcaves | Befriended Subdweller 3004 | -10/Subcaves | Shifting Twisted Machinery released Barrage Gun 3119 | -10/Subcaves | A swath of the cavern ceiling suddenly collapsed 3301 | -10/Subcaves | Befriended Subdweller 3351 | -10/Subcaves | Befriended Subdweller 3351 | -10/Subcaves | Befriended Subdweller 3466 | -10/Subcaves | Identified exit to Materials 3466 | -10/Subcaves | Discovered exit to Materials (range 10) 3518 | -10/Subcaves | Visited 4L-MR0's lab 3732 | -10/Subcaves | Shifting Twisted Machinery released Sub. Beam Cannon 3738 | -10/Subcaves | Shifting Twisted Machinery released Ripper 3786 | -10/Subcaves | Visited Clippyterm 3791 | -10/Subcaves | Learned Factory stockpile data 3832 | -10/Subcaves | Learned location of Zion (-7) 3832 | -10/Subcaves | Met a Zionite searching for "candidates" 4001 | -10/Subcaves | Befriended Subdweller 4036 | -10/Subcaves | Befriended Subdweller 4036 | -10/Subcaves | Befriended Subdweller 4101 | -10/Subcaves | Discovered exit to Materials (range 8) 4231 | -10/Subcaves | Befriended Subdweller 4334 | -10/Subcaves | Curiously followed by a Cobbler waking with a query about "LVR3C" 4526 | -10/Subcaves | Befriended Subdweller 4531 | -10/Subcaves | Befriended Subdweller 4763 | -10/Subcaves | Found SUBCON Basin 4890 | -10/Subcaves | Shifting Twisted Machinery released Sub. Machine Gun 4902 | -10/Subcaves | Shifting Twisted Machinery released Hvy. Battle Rifle 5028 | -10/Subcaves | Build established: Hauler-Mutant 6093 | -10/Subcaves | Befriended Subdweller 6093 | -10/Subcaves | Befriended Subdweller 6627 | -10/Subcaves | Identified exit to Recycling 6627 | -10/Subcaves | Discovered exit to Recycling (range 13) 6703 | -10/Subcaves | Entered Recycling 6703 | -9/Recycling | Accompanied by 11 allies 6944 | -9/Recycling | Scanned before Scraplab entrance 7028 | -9/Recycling | Entered Scraplab 7153 | -9/Recycling | Identified exit to Scraptown 7153 | -9/Recycling | Discovered exit to Scraptown (range 7) 7451 | -9/Recycling | Build established: Scavenger-Mutant 7707 | -9/Recycling | Identified exit to Factory 7707 | -9/Recycling | Discovered exit to Factory (range 7) 8117 | -9/Recycling | Entered Scraptown 8117 | -9/Scraptown | Accompanied by 9 allies 8117 | -9/Scraptown | System corruption cleaned by C-Scrubber 8230 | -9/Scraptown | Build established: Hacker-Mutant 8292 | -9/Scraptown | Delivered V3-11A's Pendant to T0-NE2 in exchange for information 8549 | -9/Scraptown | Heard Great Nut preacher, LISTEN AND RECITE! 8652 | -9/Scraptown | Identified exit to Factory 8652 | -9/Scraptown | Discovered exit to Factory (range 13) 8748 | -9/Scraptown | Scanned Subdweller tech in exchange for log data 8764 | -9/Scraptown | Learned Research terminal intel 8767 | -9/Scraptown | Learned Factory stockpile data 8769 | -9/Scraptown | Learned location of Quarantine (-2) 8843 | -9/Scraptown | Visited Red Mages 8875 | -9/Scraptown | Visited Cyclists 8889 | -9/Scraptown | Visited Spacefarers 8920 | -9/Scraptown | Visited Shadow of the Wyrm 8956 | -9/Scraptown | Visited Awakened 9033 | -9/Scraptown | Visited Fellowship of the Rings 9619 | -9/Scraptown | Entered Factory 9619 | -6/Factory | Accompanied by 9 allies 9619 | -6/Factory | Evolved 8 slots: Propulsion x4, Utility x4 9885 | -6/Factory | Spotted B-75 Beast 9899 | -6/Factory | Destroyed B-75 Beast 9944 | -6/Factory | Fabricated Hardcell Cannon? 9946 | -6/Factory | Lost 4 allies 9980 | -6/Factory | Garrison activated, responded to threat 9992 | -6/Factory | Lost 5 allies 10835 | -6/Factory | Identified exit to Lower Caves 10835 | -6/Factory | Discovered exit to Lower Caves (range 15) 11592 | -6/Factory | Sucked down chute 11592 | -6/Factory | Entered Waste 11592 | -6/Waste | The area was eerily silent 11662 | -6/Waste | A Compactor rumbled back to life 11663 | -6/Waste | Destroyed C-40 Crusher 12080 | -6/Waste | Found Unknown Device 12080 | -6/Waste | Identified Quantum Capacitor 12145 | -6/Waste | Identified exit to Factory 12145 | -6/Waste | Discovered exit to Factory (range 16) 12272 | -6/Waste | A Compactor rumbled back to life 12277 | -6/Waste | Crushed by Compactor (0 parts destroyed, 1 dropped) 12277 | -6/Waste | Spotted C-40 Crusher 12280 | -6/Waste | Crushed by Compactor (0 parts destroyed, 1 dropped) 12293 | -6/Waste | Entered Factory 12604 | -6/Factory | Spotted B-75 Beast 12621 | -6/Factory | Destroyed B-75 Beast 13076 | -6/Factory | Build established: Wizard-Mutant 13329 | -6/Factory | Allied Derelicts emerged from ambush trap array 13652 | -6/Factory | Identified exit to Factory 13652 | -6/Factory | Discovered exit to Factory (range 4) 14284 | -6/Factory | Build established: Hacker-Mutant 15607 | -6/Factory | Discovered exit to Factory (range 12) 16584 | -6/Factory | Fabricated Rnf. Antimatter Reactor (x2) 16626 | -6/Factory | Fabricated Adv. Sensor Array (x2) 17210 | -6/Factory | Repaired Imp. Medium Treads+ 17210 | -6/Factory | Tech Extrapolator generated special schematic: Deep Structural Scanner 17256 | -6/Factory | Repaired Med. Treads+ 17319 | -6/Factory | Repaired Hardcell Cannon 17488 | -6/Factory | Fabricated Deep Structural Scanner (x1) 17571 | -6/Factory | Discovered exit to Factory (range 15) 17671 | -6/Factory | Core integrity fell below 50% 17870 | -6/Factory | Discovered exit to Lower Caves (range 6) 18057 | -6/Factory | Entered Lower Caves 18477 | -6/Lower Caves | Attracted the attention of an 0b10 outpost 18536 | -6/Lower Caves | Core integrity fell below 20% 18537 | -6/Lower Caves | Core destroyed Last Messages --------------- shutdown. 18524_ Overheating: Matter decay (-27). 18524_ Penetrated by Slug. 18525_ Acquired 130 matter. 18526_ Penetrated by Slug. 18528_ Y-64 Sentinel heat short circuits Neutrino Core. 18529_ Penetrated by Slug. 18530_ 12HDCQBRF0O 3A1UA7RO UVDB M#YLGT 18530_ Y-64 Sentinel suffers critical hit (Blast). 18530_ Destroyed Imp. Medium Armor Plating. 18532_ Overheating: Core damaged (-161). 18533_ Y-64 Sentinel destroyed. 18535_ Overheating: System interference. 18535_ Machine Analyzer temporarily disabled. 18536_ Power failure, Rnf. Antimatter Reactor shutdown. 18536_ Overheating: Core damaged (-144). 18537_ Overheating: Core damaged (-93). Map ----- +----------------------------------------------------+ | ?????????????????????????????????????????????????? | | ?????????????????????????????????????????????????? | | ?????????????????????????????????????????????????? | | ?????????????????????????????????????????????????? | | ?????????????????????????????????????????????????? | | ?????????????????????????????????????????????????? | | ?????????????????????????????????????????????????? | | ?????????????????????????????????????????????????? | | ?????????????????????????????????????????????????? | | ?????????????????????????????????????????????????? | | ?????????????????????????????????????????????????? | | ?????????????????????????????????????????????????? | | ?????????????????????????????????????????????????? | | ?????????????????????????????????????????????????? | | ??????????????????????????#??????????????????????? | | ????????????????????????? #??????????????????????? | | ????????????????????????? #??????????????????????? | | ?????????????????????#### #??????????????????????? | | ?????????????????????/% # ???????????????????????? | | ?????????????????????# % %???????????????????????? | | ???????????????????### = ????????????????????????? | | ???????????????????? ????????????????????????? | | ?????????????????????#! ######???????????????????? | | ??????????????????####*%#[#;;#########???????????? | | ??????????????????#;; %/% = #???????????? | | ??????????????????## %=[@! #???????????? | | ??????????????# % ""#### #???????????? | | ??????????????# % % % " "### #???????????? | | ??????????????######%% " "" #???????????? | | ???????????????????#;## """"" ##?????###### | | ??????????????????#;#?## """""" ##???## # | | ?????????????????# #???## """""" #?### | | ???????????????? #????? " """ ### ## | | ??????????????? ????? """ ##### | | ??????????????# ????? ### """""" ##???? | | ?????????????? ?????? ### ###"" ###????# | | ????????????????????? ####" ## ##????### | | ????????????????????# #####????## | | ????????????????????????## ##?####### | | ?????????????????????????####### ### # | | ???????????????????????????????# # | | ?????????????????????????????# ## # | | ?????????????????????????????#####?## ## # | | ????????????????????????????????????# ### | | ????????????????????????????????????# ## # | | ????????????????????????????????????# ### #### | | ????????????????????????????????????# #######??# | | ????????????????????????????????????# #?????# | | ???????????????????????????????????## # #?????? | | ?????????????????????????????????### ## #?????? | +----------------------------------------------------+ Best States ------------- Heat Dissipation 91 Energy Generation 21 Energy Capacity 900 Matter Stores 300 Matter Capacity 300 Sight Range 16 Robot Scan Range 16 Terrain Scan Density 10 ECM Strength 2 Additional Mass Support 9 Armor Coverage 450 Resistance: KI 35 Resistance: TH 35 Resistance: EX 35 Resistance: EM 35 Resistance: I 35 Resistance: S 35 Resistance: P 35 Evasion (%) 50 Recoil Reduction 6 Offensive Hacking 62 Defensive Hacking 12 Authchip Count 2 Item Schematics ----------------- Hvy. Hammer | -9/Recycling | Hacked Imp. Light Cannon | -9/Recycling | Hacked Great Maul | -9/Recycling | Hacked Autogun | -9/Recycling | Hacked Hardcell Cannon | -6/Factory | Hacked Imp. Lightning Gun | -6/Factory | Hacked Rnf. Antimatter Reactor | -6/Factory | Hacked Hvy. Treads | -6/Factory | Scanalyzed Adv. Sensor Array | -6/Factory | Scanalyzed Adv. Shield Generator | -6/Factory | Hacked Imp. Proton Missile Launcher | -6/Factory | Hacked Lgt. Angular Momentum Engine | -6/Factory | Hacked Field Propulsion Drive | -6/Factory | Hacked Dispersion Rifle | -6/Factory | Hacked Adv. Medium Treads | -6/Factory | Hacked Humpback | -6/Factory | Scanalyzed Shock Maul | -6/Factory | Scanalyzed Cloaking Device | -6/Factory | Scanalyzed Machine Analyzer | -6/Factory | Scanalyzed Adv. Signal Interpreter | -6/Factory | Scanalyzed Adv. ECM Suite | -6/Factory | Scanalyzed Plasma Cutter | -6/Factory | Scanalyzed Adv. Terrain Scan Processor | -6/Factory | Scanalyzed Adv. Terrain Scanner | -6/Factory | Scanalyzed Power Sword | -6/Factory | Scanalyzed Proton Cannon | -6/Factory | Scanalyzed Mining Laser | -6/Factory | Scanalyzed Lyr. Light Armor Plating | -6/Factory | Scanalyzed Graphene Brace | -6/Factory | Scanalyzed Adv. Assault Cannon | -6/Factory | Scanalyzed Drone Bay | -6/Factory | Scanalyzed 0b10 Decoder Chip [Skirmisher] | -6/Factory | Extrapolated Mak. Hacking Suite | -6/Factory | Extrapolated Deep Structural Scanner | -6/Factory | Extrapolated Battle Cannon | -6/Factory | Extrapolated Railgun | -6/Factory | Hacked Lance | -6/Factory | Hacked Antigrav System | -6/Factory | Hacked Thunder Leg | -6/Factory | Hacked Mak. Light Armor Plating | -6/Factory | Extrapolated Beamcaster | -6/Factory | Extrapolated Robot Schematics ------------------ G-47 Trooper | -6/Factory | Hacked Fabricated ------------ Hardcell Cannon | x2 | -6/Factory Rnf. Antimatter Reactor | x2 | -6/Factory Adv. Sensor Array | x2 | -6/Factory | Authchip Deep Structural Scanner | x1 | -6/Factory Repaired ---------- Imp. Medium Treads | 8% | -6/Factory Med. Treads | 16% | -6/Factory Hardcell Cannon | 28% | -6/Factory Studied --------- Plasma Cutter | -6/Factory | Hacked Adv. Assault Cannon | -6/Factory | Hacked Imp. Medium Treads | -6/Factory | Hacked Mining Laser | -6/Factory | Hacked Proton Cannon | -6/Factory | Hacked Med. Treads | -6/Factory | Hacked Alien Tech Used ----------------- None Achievements -------------- None Challenges ------------ None Game ------ Seed CorruptionGrenadeMeganuke Manual? 0 Play Time 01:21:41 Cumulative 227.2 hours Start 2025.12.25 @ 13:17:19 End 2025.12.25 @ 14:37:24 Sessions 1 Manual Loads 0 Difficulty Explorer Special Mode None Game No. 347 Rogue 0 Adventurer 0 Explorer 347 Win Type - Total 0 Types 0/0/0/0/0/0/0/0/0/0 Lore% 71 Gallery% 68 Achievement% 53 Wizard Run 0 Options --------- Layout 1 ASCII 0 Keyboard 0 Movement Mouse Keybinds 0 Fullscreen 1 Font 24/Smallcaps Map View 50x35 Zoom Use 0% Tactical HUD 1 Map Filters NONE Filters NONE Steam 1 RUN: f52ca0ad-51f0-4739-a82a-af48fbbfb679